fUST/lending_fUST_20250912
["ID","MTS","AMOUNT","RATE_DAILY","PERIOD"]
[385007722,1757643044827,-240.098994,0.0001622,2]
[385007724,1757643044836,-240.098994,0.0001622,2]
[385007727,1757643044846,-240.098994,0.0001622,2]
[385007729,1757643044855,-240.098994,0.0001622,2]
[385007730,1757643044864,-3000.0,0.0001623,2]
[385007732,1757643044873,-3000.0,0.0001624,2]
[385007734,1757643044882,-3000.0,0.0001625,2]
[385007736,1757643044893,-3000.0,0.0001626,2]
[385007739,1757643044903,-3000.0,0.0001627,2]
[385007741,1757643044913,-480.0,0.00016274,2]
[385007743,1757643044922,-749.9,0.00016274,2]
[385007745,1757643044931,-167.55396721,0.00016274,2]
[385007747,1757643044940,-1815.78,0.00016275,2]
[385007749,1757643044949,-836.46,0.00016275,2]
[385007751,1757643044959,-480.0,0.00016275,2]
[385007753,1757643044968,-848.55,0.00016275,2]
[385007755,1757643044977,-480.0,0.00016275,2]
[385007757,1757643044986,-1074.47,0.00016275,2]
[385007759,1757643044995,-3527.85,0.00016275,2]
[385007761,1757643045006,-1533.86,0.00016275,2]
[385007763,1757643045015,-575.67,0.00016275,2]
[385007765,1757643045025,-919.23,0.00016275,2]
[385007767,1757643045035,-480.0,0.00016275,2]
[385007769,1757643045043,-1703.8,0.00016275,2]
[385007771,1757643045052,-480.0,0.00016275,2]
[385007772,1757643045060,-757.98,0.00016275,2]
[385007774,1757643045069,-354.27294273,0.00016275,2]
[385007776,1757643045078,-480.0,0.00016275,2]
[385007778,1757643045088,-8259.46,0.00016275,2]
[385007780,1757643045098,-578.44950272,0.00016276,2]
[385007782,1757643045106,-480.0,0.00016276,2]
[385007784,1757643045116,-614.29191605,0.00016276,2]
[385007786,1757643045125,-480.0,0.00016276,2]
[385007788,1757643045135,-480.0,0.00016276,2]
[385007790,1757643045145,-480.0,0.00016276,2]
[385007792,1757643045154,-329.00972586,0.00016276,2]
[385007794,1757643045163,-871.22,0.00016276,2]
[385007796,1757643045172,-3000.0,0.0001628,2]
[385007798,1757643045181,-3000.0,0.0001629,2]
[385007800,1757643045190,-271.430215,0.0001629,2]
[385007802,1757643045199,-271.430215,0.0001629,2]
[385007804,1757643045208,-271.430215,0.0001629,2]
[385007806,1757643045217,-271.430215,0.0001629,2]
[385007808,1757643045225,-151.0,0.0001629,2]
[385007810,1757643045235,-151.0,0.0001629,2]
[385007812,1757643045244,-151.0,0.0001629,2]
[385007814,1757643045256,-242.215635,0.0001629,2]
[385007816,1757643045265,-151.0,0.0001629,2]
[385007818,1757643045275,-242.215635,0.0001629,2]
[385007820,1757643045284,-151.0,0.0001629,2]
[385007822,1757643045293,-242.215635,0.0001629,2]
[385007824,1757643045302,-242.215635,0.0001629,2]
[385007826,1757643045310,-260.028313,0.0001629,2]
[385007828,1757643045320,-151.0,0.0001629,2]
[385007830,1757643045329,-260.028313,0.0001629,2]
[385007832,1757643045338,-260.028313,0.0001629,2]
[385007834,1757643045347,-260.028313,0.0001629,2]
[385007836,1757643045356,-3000.0,0.000163,2]
[385007838,1757643045365,-296.00219998,0.000163,2]
[385007840,1757643045373,-480.0,0.000163,2]
[385007842,1757643045382,-151.0,0.000163,2]
[385007844,1757643045391,-151.0,0.000163,2]
[385007846,1757643045400,-151.0,0.000163,2]
[385007848,1757643045410,-151.0,0.000163,2]
[385007850,1757643045419,-151.0,0.000163,2]
[385007852,1757643045428,-151.0,0.000163,2]
[385007854,1757643045436,-152.755332,0.000163,2]
[385007856,1757643045446,-153.381209,0.000163,2]
[385007858,1757643045456,-565.91,0.000163,2]
[385007860,1757643045465,-480.0,0.000163,2]
[385007861,1757643045474,-3000.0,0.0001631,2]
[385007863,1757643045483,-3000.0,0.0001632,2]
[385007865,1757643045492,-3000.0,0.0001633,2]
[385007867,1757643045501,-151.0,0.0001633,2]
[385007869,1757643045509,-151.0,0.0001633,2]
[385007871,1757643045518,-151.0,0.0001633,2]
[385007873,1757643045528,-154.26924,0.0001633,2]
[385007875,1757643045537,-151.0,0.0001633,2]
[385007877,1757643045546,-3000.0,0.0001634,2]
[385007879,1757643045555,-3000.0,0.0001635,2]
[385007881,1757643045564,-3000.0,0.0001636,2]
[385007883,1757643045573,-3000.0,0.0001637,2]
[385007885,1757643045590,-1500.0,0.00016374,2]
[385007887,1757643045599,-250.2890954,0.0001638,2]
[385007912,1757643045819,-480.0,0.00014905,2]
[385007914,1757643045828,-480.0,0.00015179,2]
[385007916,1757643045837,-480.0,0.00015453,2]
[385007918,1757643045846,-480.0,0.00015727,2]
[385007920,1757643045855,-480.0,0.00015727,2]
[385007921,1757643045864,-480.0,0.00016001,2]
[385007923,1757643045873,-480.0,0.00016001,2]
[385007925,1757643045882,-2536.79,0.00016002,2]
[385007927,1757643045891,-480.0,0.00016275,2]
[385007929,1757643045899,-170.42282067,0.00016275,2]
[385007931,1757643045909,-2536.79,0.00016276,2]
[385007933,1757643045918,-2749.7109046,0.0001638,2]
[385007935,1757643045927,-3000.0,0.0001639,2]
[385007937,1757643045937,-3000.0,0.000164,2]
[385007939,1757643045946,-575.2,0.00016403,2]
[385007941,1757643045955,-240.94776544,0.00016403,2]
[385007943,1757643045965,-777.34,0.00016403,2]
[385007945,1757643045974,-1004.46064449,0.00016403,2]
[385007947,1757643045983,-3000.0,0.0001641,2]
[385007949,1757643045992,-5796.905526,0.0001642,2]
[385007951,1757643046002,-151.0,0.0001642,2]
[385007953,1757643046011,-168.0,0.00016434,2]
[385007955,1757643046020,-154.313128,0.00016438,2]
[385007957,1757643046030,-480.0,0.00016548,2]
[385007959,1757643046039,-749.9,0.00016548,2]
[385007961,1757643046048,-1815.78,0.00016549,2]
[385007963,1757643046057,-836.46,0.00016549,2]
[385007965,1757643046067,-480.0,0.00016549,2]
[385007967,1757643046076,-848.55,0.00016549,2]
[385007969,1757643046085,-480.0,0.00016549,2]
[385007971,1757643046094,-1074.47,0.00016549,2]
[385007973,1757643046104,-3527.85,0.00016549,2]
[385007975,1757643046113,-1533.86,0.00016549,2]
[385007977,1757643046122,-575.67,0.00016549,2]
[385007979,1757643046132,-919.23,0.00016549,2]
[385007981,1757643046142,-480.0,0.00016549,2]
[385007983,1757643046151,-1703.8,0.00016549,2]
[385007985,1757643046160,-480.0,0.00016549,2]
[385007987,1757643046169,-757.98,0.00016549,2]
[385007989,1757643046178,-480.0,0.00016549,2]
[385007991,1757643046188,-8259.46,0.00016549,2]
[385007993,1757643046197,-151.0,0.00016549,2]
[385007995,1757643046205,-480.0,0.00016549,2]
[385007997,1757643046215,-151.0,0.0001655,2]
[385007999,1757643046225,-151.0,0.0001655,2]
[385008002,1757643046236,-151.0,0.0001655,2]
[385008004,1757643046245,-188.59039,0.0001655,2]
[385008006,1757643046257,-151.0,0.0001655,2]
[385008008,1757643046266,-152.117741,0.0001655,2]
[385008010,1757643046275,-480.0,0.0001655,2]
[385008012,1757643046284,-480.0,0.0001655,2]
[385008014,1757643046294,-480.0,0.0001655,2]
[385008016,1757643046303,-480.0,0.0001655,2]
[385008018,1757643046312,-871.22,0.0001655,2]
[385008020,1757643046322,-2536.79,0.0001655,2]
[385008022,1757643046333,-720.0,0.00016555,2]
[385008024,1757643046343,-152.28957,0.00016574,2]
[385008026,1757643046352,-151.0,0.00016574,2]
[385008028,1757643046361,-480.0,0.00016574,2]
[385008030,1757643046370,-565.91,0.00016574,2]
[385008032,1757643046379,-480.0,0.00016574,2]
[385008034,1757643046387,-587.0,0.00016578,2]
[385008036,1757643046396,-575.2,0.00016677,2]
[385008038,1757643046405,-777.34,0.00016677,2]
[385008039,1757643046414,-555.2208423,0.00016688,2]
[385008042,1757643046423,-168.0,0.0001675,2]
[385008044,1757643046433,-260.0,0.00016751,2]
[385008045,1757643046442,-480.0,0.00016822,2]
[385008048,1757643046452,-749.9,0.00016822,2]
[385008049,1757643046461,-1815.78,0.00016823,2]
[385008051,1757643046470,-836.46,0.00016823,2]
[385008053,1757643046479,-480.0,0.00016823,2]
[385008055,1757643046488,-848.55,0.00016823,2]
[385008057,1757643046497,-480.0,0.00016823,2]
[385008059,1757643046506,-1074.47,0.00016823,2]
[385008061,1757643046515,-3527.85,0.00016823,2]
[385008063,1757643046523,-1533.86,0.00016823,2]
[385008065,1757643046533,-575.67,0.00016823,2]
[385008067,1757643046542,-919.23,0.00016823,2]
[385008069,1757643046553,-480.0,0.00016823,2]
[385008071,1757643046561,-1703.8,0.00016823,2]
[385008073,1757643046570,-480.0,0.00016823,2]
[385008075,1757643046579,-757.98,0.00016823,2]
[385008077,1757643046588,-480.0,0.00016823,2]
[385008079,1757643046597,-8259.46,0.00016823,2]
[385008081,1757643046608,-480.0,0.00016823,2]
[385008083,1757643046617,-480.0,0.00016824,2]
[385008085,1757643046625,-480.0,0.00016824,2]
[385008087,1757643046634,-480.0,0.00016824,2]
[385008089,1757643046643,-480.0,0.00016824,2]
[385008091,1757643046652,-871.22,0.00016824,2]
[385008093,1757643046661,-2536.79,0.00016824,2]
[385008095,1757643046669,-480.0,0.00016848,2]
[385008097,1757643046679,-565.91,0.00016848,2]
[385008099,1757643046688,-151.0,0.00016848,2]
[385008101,1757643046697,-151.0,0.00016848,2]
[385008103,1757643046705,-480.0,0.00016848,2]
[385008105,1757643046714,-151.0,0.00016848,2]
[385008107,1757643046723,-158.195021,0.00016848,2]
[385008109,1757643046733,-158.195021,0.00016848,2]
[385008111,1757643046741,-158.195021,0.00016848,2]
[385008113,1757643046751,-158.195021,0.00016848,2]
[385008115,1757643046759,-151.0,0.00016848,2]
[385008117,1757643046768,-158.405656,0.00016848,2]
[385008119,1757643046777,-240.098994,0.00016848,2]
[385008121,1757643046786,-240.098994,0.00016848,2]
[385008123,1757643046794,-240.098994,0.00016848,2]
[385008125,1757643046803,-240.098994,0.00016848,2]
[385008127,1757643046812,-2000.0,0.00016922,2]
[385008129,1757643046821,-575.2,0.00016951,2]
[385008131,1757643046830,-777.34,0.00016951,2]
[385008133,1757643046839,-480.0,0.00017096,2]
[385008146,1757643046942,-749.9,0.00017096,2]
[385008148,1757643046951,-1815.78,0.00017097,2]
[385008150,1757643046960,-836.46,0.00017097,2]
[385008152,1757643046969,-480.0,0.00017097,2]
[385008154,1757643046978,-848.55,0.00017097,2]
[385008156,1757643046987,-493.74230819,0.00017097,2]
[385008158,1757643046996,-1074.47,0.00017097,2]
[385008160,1757643047006,-3527.85,0.00017097,2]
[385008162,1757643047015,-1533.86,0.00017097,2]
[385008164,1757643047025,-575.67,0.00017097,2]
[385008166,1757643047034,-919.23,0.00017097,2]
[385008168,1757643047043,-480.0,0.00017097,2]
[385008170,1757643047053,-1703.8,0.00017097,2]
[385008172,1757643047062,-480.0,0.00017097,2]
[385008174,1757643047071,-757.98,0.00017097,2]
[385008175,1757643047081,-480.0,0.00017097,2]
[385008177,1757643047090,-8259.46,0.00017097,2]
[385008179,1757643047099,-480.0,0.00017097,2]
[385008181,1757643047108,-480.0,0.00017098,2]
[385008183,1757643047117,-573.80045614,0.00017098,2]
[385008185,1757643047126,-480.0,0.00017098,2]
[385008187,1757643047135,-480.0,0.00017098,2]
[385008189,1757643047145,-871.22,0.00017098,2]
[385008191,1757643047155,-2536.79,0.00017098,2]
[385008193,1757643047163,-480.0,0.00017122,2]
[385008195,1757643047172,-565.91,0.00017122,2]
[385008197,1757643047182,-480.0,0.00017122,2]
[385008199,1757643047191,-271.430215,0.00017225,2]
[385008201,1757643047200,-271.430215,0.00017225,2]
[385008203,1757643047209,-271.430215,0.00017225,2]
[385008205,1757643047218,-271.430215,0.00017225,2]
[385008207,1757643047227,-151.0,0.00017225,2]
[385008209,1757643047237,-151.0,0.00017225,2]
[385008211,1757643047247,-153.635042,0.00017225,2]
[385008213,1757643047260,-575.2,0.00017225,2]
[385008215,1757643047269,-777.34,0.00017225,2]
[385008217,1757643047279,-242.215635,0.00017225,2]
[385008219,1757643047288,-242.215635,0.00017225,2]
[385008221,1757643047298,-152.427047,0.00017225,2]
[385008223,1757643047307,-242.215635,0.00017225,2]
[385008225,1757643047316,-242.215635,0.00017225,2]
[385008227,1757643047325,-260.028313,0.00017225,2]
[385008229,1757643047335,-151.0,0.00017225,2]
[385008231,1757643047345,-260.028313,0.00017225,2]
[385008233,1757643047354,-260.028313,0.00017225,2]
[385008235,1757643047364,-260.028313,0.00017225,2]
[385008237,1757643047373,-168.0,0.0001724,2]
[385008239,1757643047382,-360.0,0.00017299,2]
[385008241,1757643047391,-480.0,0.0001737,2]
[385008243,1757643047401,-749.9,0.0001737,2]
[385008245,1757643047411,-1815.78,0.00017371,2]
[385008247,1757643047420,-836.46,0.00017371,2]
[385008249,1757643047429,-480.0,0.00017371,2]
[385008251,1757643047439,-848.55,0.00017371,2]
[385008254,1757643047448,-1074.47,0.00017371,2]
[385008256,1757643047457,-3527.85,0.00017371,2]
[385008258,1757643047466,-1533.86,0.00017371,2]
[385008260,1757643047475,-575.67,0.00017371,2]
[385008261,1757643047484,-919.23,0.00017371,2]
[385008264,1757643047493,-480.0,0.00017371,2]
[385008265,1757643047503,-1703.8,0.00017371,2]
[385008267,1757643047511,-480.0,0.00017371,2]
[385008269,1757643047521,-757.98,0.00017371,2]
[385008271,1757643047529,-480.0,0.00017371,2]
[385008272,1757643047538,-8259.46,0.00017371,2]
[385008274,1757643047547,-480.0,0.00017371,2]
[385008276,1757643047557,-151.0,0.00017372,2]
[385008278,1757643047566,-151.0,0.00017372,2]
[385008280,1757643047575,-151.0,0.00017372,2]
[385008281,1757643047583,-480.0,0.00017372,2]
[385008283,1757643047593,-151.0,0.00017372,2]
[385008285,1757643047602,-480.0,0.00017372,2]
[385008287,1757643047611,-480.0,0.00017372,2]
[385008289,1757643047620,-871.22,0.00017372,2]
[385008290,1757643047629,-2536.79,0.00017372,2]
[385008292,1757643047639,-168.0,0.00017387,2]
[385008294,1757643047648,-480.0,0.00017396,2]
[385008296,1757643047657,-246.78074,0.00017396,2]
[385008298,1757643047666,-151.0,0.00017396,2]
[385008300,1757643047675,-151.0,0.00017396,2]
[385008301,1757643047685,-151.0,0.00017396,2]
[385008303,1757643047694,-151.0,0.00017396,2]
[385008305,1757643047703,-187.803452,0.00017396,2]
[385008307,1757643047712,-565.91,0.00017396,2]
[385008309,1757643047721,-480.0,0.00017396,2]
[385008311,1757643047729,-555.2208423,0.00017399,2]
[385008312,1757643047738,-1326.14251556,0.0001747,2]
[385008314,1757643047748,-575.2,0.00017499,2]
[385008316,1757643047757,-777.34,0.00017499,2]
[385008318,1757643047766,-168.0,0.00017519,2]
[385008319,1757643047774,-2164.646,0.0001761,2]
[385008321,1757643047783,-637.809,0.0001761,2]
[385008323,1757643047792,-410.963,0.0001761,2]
[385008325,1757643047802,-168.0,0.00017624,2]
[385008326,1757643047810,-480.0,0.00017644,2]
[385008328,1757643047820,-749.9,0.00017644,2]
[385008330,1757643047829,-1815.78,0.00017645,2]
[385008332,1757643047838,-836.46,0.00017645,2]
[385008334,1757643047848,-480.0,0.00017645,2]
[385008335,1757643047857,-848.55,0.00017645,2]
[385008337,1757643047867,-1074.47,0.00017645,2]
[385008339,1757643047876,-3527.85,0.00017645,2]
[385008341,1757643047885,-1533.86,0.00017645,2]
[385008342,1757643047894,-575.67,0.00017645,2]
[385008344,1757643047903,-919.23,0.00017645,2]
[385008346,1757643047913,-480.0,0.00017645,2]
[385008348,1757643047923,-1703.8,0.00017645,2]
[385008350,1757643047932,-480.0,0.00017645,2]
[385008351,1757643047940,-757.98,0.00017645,2]
[385008353,1757643047949,-475.3853963,0.00017645,2]
[385008355,1757643047958,-8259.46,0.00017645,2]
[385008357,1757643047967,-471.32448291,0.00017645,2]
[385008359,1757643047977,-216.964,0.00017646,2]
[385008360,1757643047986,-480.0,0.00017646,2]
[385008362,1757643047995,-225.15927512,0.00017646,2]
[385008364,1757643048005,-480.0,0.00017646,2]
[385008366,1757643048014,-871.22,0.00017646,2]
[385008368,1757643048023,-2536.79,0.00017646,2]
[385008370,1757643048033,-480.0,0.0001767,2]
[385008371,1757643048042,-565.91,0.0001767,2]
[385008373,1757643048051,-480.0,0.0001767,2]
[385008375,1757643048060,-575.2,0.00017773,2]
[385008377,1757643048069,-151.0,0.00017773,2]
[385008379,1757643048078,-151.0,0.00017773,2]
[385008381,1757643048089,-151.0,0.00017773,2]
[385008383,1757643048099,-151.0,0.00017773,2]
[385008384,1757643048108,-777.34,0.00017773,2]
[385008386,1757643048117,-163.969088,0.00017773,2]
[385008388,1757643048126,-151.0,0.00017846,2]
[385008390,1757643048135,-460.0,0.00017847,2]
[385008392,1757643048144,-841.34374024,0.0001788,2]
[385008393,1757643048153,-480.0,0.00017918,2]
[385008395,1757643048163,-749.9,0.00017918,2]
[385008397,1757643048172,-1815.78,0.00017919,2]
[385008399,1757643048182,-836.46,0.00017919,2]
[385008401,1757643048191,-480.0,0.00017919,2]
[385008403,1757643048201,-848.55,0.00017919,2]
[385008404,1757643048210,-1074.47,0.00017919,2]
[385008406,1757643048219,-3527.85,0.00017919,2]
[385008408,1757643048229,-1533.86,0.00017919,2]
[385008410,1757643048238,-575.67,0.00017919,2]
[385008412,1757643048248,-919.23,0.00017919,2]
[385008414,1757643048259,-480.0,0.00017919,2]
[385008415,1757643048268,-1703.8,0.00017919,2]
[385008417,1757643048277,-480.0,0.00017919,2]
[385008419,1757643048286,-757.98,0.00017919,2]
[385008421,1757643048296,-8259.46,0.00017919,2]
[385008423,1757643048305,-480.0,0.0001792,2]
[385008425,1757643048314,-480.0,0.0001792,2]
[385008426,1757643048324,-871.22,0.0001792,2]
[385008428,1757643048334,-2536.79,0.0001792,2]
[385008430,1757643048344,-480.0,0.00017944,2]
[385008432,1757643048353,-565.91,0.00017944,2]
[385008434,1757643048362,-603.96,0.00017944,2]
[385008436,1757643048371,-575.2,0.00018047,2]
[385008438,1757643048380,-777.34,0.00018047,2]
[385008440,1757643048389,-150.107,0.00018078,2]
[385008441,1757643048399,-823.0,0.00018166,2]
[385008443,1757643048408,-480.0,0.00018192,2]
[385008445,1757643048418,-749.9,0.00018192,2]
[385008447,1757643048427,-1815.78,0.00018193,2]
[385008448,1757643048436,-836.46,0.00018193,2]
[385008450,1757643048446,-480.0,0.00018193,2]
[385008452,1757643048456,-848.55,0.00018193,2]
[385008454,1757643048465,-1074.47,0.00018193,2]
[385008455,1757643048475,-3527.85,0.00018193,2]
[385008457,1757643048485,-1533.86,0.00018193,2]
[385008459,1757643048494,-575.67,0.00018193,2]
[385008461,1757643048503,-919.23,0.00018193,2]
[385008462,1757643048513,-480.0,0.00018193,2]
[385008464,1757643048522,-1703.8,0.00018193,2]
[385008466,1757643048532,-480.0,0.00018193,2]
[385008468,1757643048541,-757.98,0.00018193,2]
[385008469,1757643048550,-240.098994,0.00018193,2]
[385008471,1757643048559,-240.098994,0.00018193,2]
[385008473,1757643048568,-240.098994,0.00018193,2]
[385008475,1757643048577,-240.098994,0.00018193,2]
[385008477,1757643048586,-8259.46,0.00018193,2]
[385008478,1757643048595,-480.0,0.00018194,2]
[385008480,1757643048604,-480.0,0.00018194,2]
[385008482,1757643048613,-871.22,0.00018194,2]
[385008484,1757643048622,-864.0,0.00018211,2]
[385008486,1757643048631,-211.27296,0.00018211,2]
[385008487,1757643048641,-151.0,0.00018211,2]
[385008489,1757643048650,-151.0,0.00018211,2]
[385008491,1757643048659,-158.195021,0.00018211,2]
[385008493,1757643048668,-158.195021,0.00018211,2]
[385008495,1757643048677,-158.195021,0.00018211,2]
[385008496,1757643048686,-158.195021,0.00018211,2]
[385008498,1757643048696,-151.0,0.00018211,2]
[385008500,1757643048705,-480.0,0.00018218,2]
[385008502,1757643048714,-565.91,0.00018218,2]
[385008504,1757643048724,-575.2,0.00018321,2]
[385008505,1757643048733,-777.34,0.00018321,2]
[385008507,1757643048742,-560.0,0.00018395,2]
[385008509,1757643048751,-150.107,0.00018442,2]
[385008511,1757643048760,-150.115,0.00018442,2]
[385008513,1757643048769,-981.212,0.00018442,2]
[385008514,1757643048779,-480.0,0.00018466,2]
[385008515,1757643048788,-749.9,0.00018466,2]
[385008517,1757643048797,-151.0,0.00018467,2]
[385008519,1757643048806,-1815.78,0.00018467,2]
[385008521,1757643048816,-836.46,0.00018467,2]
[385008523,1757643048825,-480.0,0.00018467,2]
[385008525,1757643048834,-848.55,0.00018467,2]
[385008526,1757643048843,-1074.47,0.00018467,2]
[385008528,1757643048852,-3527.85,0.00018467,2]
[385008530,1757643048862,-1533.86,0.00018467,2]
[385008532,1757643048871,-575.67,0.00018467,2]
[385008534,1757643048881,-919.23,0.00018467,2]
[385008536,1757643048896,-335.99357355,0.00018467,2]
[385008538,1757643048906,-1703.8,0.00018467,2]
[385008540,1757643048915,-480.0,0.00018467,2]
[385008542,1757643048924,-757.98,0.00018467,2]
[385008544,1757643048933,-8259.46,0.00018467,2]
[385008546,1757643048942,-480.0,0.00018468,2]
[385008547,1757643048951,-480.0,0.00018468,2]
[385008549,1757643048961,-871.22,0.00018468,2]
[385008551,1757643048970,-480.0,0.00018492,2]
[385008553,1757643048981,-565.91,0.00018492,2]
[385008555,1757643048989,-300.949406,0.00018493,2]
[385008557,1757643048998,-3000.0,0.0001852,2]
[385008559,1757643049009,-575.2,0.00018595,2]
[385008560,1757643049018,-777.34,0.00018595,2]
[385008562,1757643049027,-242.215635,0.00018595,2]
[385008564,1757643049037,-242.215635,0.00018595,2]
[385008566,1757643049046,-242.215635,0.00018595,2]
[385008568,1757643049054,-242.215635,0.00018595,2]
[385008578,1757643049063,-260.028313,0.00018595,2]
[385008580,1757643049162,-151.0,0.00018595,2]
[385008582,1757643049171,-260.028313,0.00018595,2]
[385008584,1757643049181,-260.028313,0.00018595,2]
[385008586,1757643049191,-260.028313,0.00018595,2]
[385008588,1757643049200,-581.72360885,0.0001874,2]
[385008590,1757643049210,-749.9,0.0001874,2]
[385008591,1757643049219,-271.430215,0.00018741,2]
[385008593,1757643049228,-271.430215,0.00018741,2]
[385008595,1757643049237,-271.430215,0.00018741,2]
[385008597,1757643049249,-271.430215,0.00018741,2]
[385008599,1757643049259,-151.0,0.00018741,2]
[385008601,1757643049268,-151.0,0.00018741,2]
[385008602,1757643049278,-151.0,0.00018741,2]
[385008604,1757643049288,-151.0,0.00018741,2]
[385008606,1757643049298,-1815.78,0.00018741,2]
[385008608,1757643049308,-836.46,0.00018741,2]
[385008610,1757643049318,-151.0,0.00018741,2]
[385008612,1757643049328,-480.0,0.00018741,2]
[385008614,1757643049338,-848.55,0.00018741,2]
[385008615,1757643049347,-1074.47,0.00018741,2]
[385008617,1757643049356,-3527.85,0.00018741,2]
[385008619,1757643049366,-1533.86,0.00018741,2]
[385008621,1757643049375,-575.67,0.00018741,2]
[385008623,1757643049385,-919.23,0.00018741,2]
[385008625,1757643049394,-1703.8,0.00018741,2]
[385008627,1757643049403,-480.0,0.00018741,2]
[385008629,1757643049413,-757.98,0.00018741,2]
[385008631,1757643049422,-8259.46,0.00018741,2]
[385008632,1757643049431,-480.0,0.00018742,2]
[385008634,1757643049441,-480.0,0.00018742,2]
[385008636,1757643049453,-871.22,0.00018742,2]
[385008638,1757643049463,-480.0,0.00018766,2]
[385008640,1757643049476,-151.0,0.00018766,2]
[385008642,1757643049489,-151.0,0.00018766,2]
[385008644,1757643049498,-151.0,0.00018766,2]
[385008646,1757643049508,-151.0,0.00018766,2]
[385008648,1757643049517,-565.91,0.00018766,2]
[385008650,1757643049529,-575.2,0.00018869,2]
[385008652,1757643049537,-777.34,0.00018869,2]
[385008654,1757643049547,-151.0,0.000189,2]
[385008655,1757643049557,-302.72757545,0.000189,2]
[385008657,1757643049566,-660.0,0.00018943,2]
[385008659,1757643049576,-749.9,0.00019014,2]
[385008661,1757643049585,-1815.78,0.00019015,2]
[385008663,1757643049594,-836.46,0.00019015,2]
[385008665,1757643049603,-480.0,0.00019015,2]
[385008667,1757643049613,-848.55,0.00019015,2]
[385008669,1757643049622,-1074.47,0.00019015,2]
[385008670,1757643049631,-3527.85,0.00019015,2]
[385008672,1757643049641,-1533.86,0.00019015,2]
[385008674,1757643049649,-575.67,0.00019015,2]
[385008676,1757643049658,-919.23,0.00019015,2]
[385008678,1757643049667,-1703.8,0.00019015,2]
[385008680,1757643049677,-480.0,0.00019015,2]
[385008682,1757643049686,-757.98,0.00019015,2]
[385008684,1757643049695,-8259.46,0.00019015,2]
[385008686,1757643049705,-480.0,0.00019016,2]
[385008687,1757643049714,-250.13271784,0.00019016,2]
[385008689,1757643049723,-871.22,0.00019016,2]
[385008691,1757643049731,-480.0,0.0001904,2]
[385008693,1757643049740,-565.91,0.0001904,2]
[385008695,1757643049749,-194.36710375,0.00019081,2]
[385008697,1757643049759,-189.31114293,0.00019126,2]
[385008699,1757643049767,-500.0,0.00019142,2]
[385008700,1757643049776,-236.47393207,0.00019142,2]
[385008702,1757643049785,-575.2,0.00019143,2]
[385008704,1757643049794,-777.34,0.00019143,2]
[385008706,1757643049804,-5000.0,0.00019178,2]
[385008708,1757643049812,-749.9,0.00019288,2]
[385008710,1757643049822,-1815.78,0.00019289,2]
[385008712,1757643049831,-836.46,0.00019289,2]
[385008714,1757643049840,-480.0,0.00019289,2]
[385008716,1757643049849,-848.55,0.00019289,2]
[385008717,1757643049858,-1074.47,0.00019289,2]
[385008719,1757643049867,-3527.85,0.00019289,2]